fUST/lending_fUST_20251013
["ID","MTS","AMOUNT","RATE_DAILY","PERIOD"]
[391103673,1760349032477,-349.55418843,0.00021773,2]
[391103674,1760349032485,-500.0,0.00021773,2]
[391103675,1760349032497,-500.0,0.00021773,2]
[391103676,1760349032506,-680.0,0.00021773,2]
[391103678,1760349032515,-254.0,0.00021773,2]
[391103679,1760349032524,-300.0,0.00021773,2]
[391103680,1760349032532,-182.0,0.00021773,2]
[391103681,1760349032541,-1200.0,0.00021773,2]
[391103682,1760349032551,-50000.0,0.00021774,2]
[391103683,1760349032561,-300.0,0.00021778,20]
[391103684,1760349032571,-300.0,0.00021778,20]
[391103685,1760349032581,-300.0,0.00021778,20]
[391103686,1760349032590,-300.0,0.00021778,20]
[391103687,1760349032599,-300.0,0.00021778,20]
[391103688,1760349032611,-300.0,0.00021778,20]
[391103689,1760349032621,-300.0,0.00021778,20]
[391103691,1760349032630,-300.0,0.00021778,20]
[391103693,1760349032639,-300.0,0.00021778,20]
[391103694,1760349032648,-300.0,0.00021778,20]
[391103696,1760349032658,-300.0,0.00021778,20]
[391103698,1760349032666,-300.0,0.00021778,20]
[391103700,1760349032675,-300.0,0.00021778,20]
[391103702,1760349032684,-300.0,0.00021778,20]
[391103704,1760349032693,-300.0,0.00021778,20]
[391103706,1760349032702,-172.5,0.00021952,2]
[391103708,1760349032711,-600.0,0.00022213,20]
[391103710,1760349032720,-195.0,0.00022552,2]
[391103712,1760349032729,-12916.75854087,0.00022609,2]
[391103714,1760349032738,-217.5,0.00023152,2]
[391103716,1760349032747,-743.26,0.00023409,2]
[391103718,1760349032756,-500.0,0.00023641,2]
[391103720,1760349032765,-420.0,0.00023665,2]
[391103722,1760349032774,-240.0,0.00023752,2]
[391103724,1760349032783,-1680.0,0.00023776,2]
[391103726,1760349032792,-500.0,0.00023832,2]
[391103728,1760349032801,-500.0,0.0002385,2]
[391103730,1760349032810,-502.35773346,0.0002385,2]
[391103732,1760349032819,-500.0,0.00024036,2]
[391103734,1760349032828,-500.0,0.00024064,2]
[391103736,1760349032838,-500.0,0.00024105,2]
[391103738,1760349032847,-1257.50062005,0.00024133,2]
[391103740,1760349032856,-501.00490254,0.00024241,2]
[391103742,1760349032866,-500.88064983,0.00024241,2]
[391103743,1760349032875,-500.0,0.00024241,2]
[391103744,1760349032884,-500.0,0.00024241,2]
[391103745,1760349032893,-500.0,0.00024241,2]
[391103746,1760349032902,-262.5,0.00024352,2]
[391103747,1760349032911,-500.0,0.00024379,2]
[391103748,1760349032920,-500.0,0.00024398,2]
[391103749,1760349032929,-720.0,0.00024434,20]
[391103750,1760349032938,-5609.64975455,0.00024581,2]
[391103751,1760349032948,-500.0,0.00024584,2]
[391103752,1760349032957,-1000.0,0.00024612,2]
[391103753,1760349032969,-500.0,0.00024653,2]
[391103754,1760349032980,-1000.0,0.00024655,2]
[391103755,1760349032992,-340.11818903,0.00024657,2]
[391103756,1760349033003,-500.0,0.00024657,2]
[391103757,1760349033014,-500.0,0.00024657,2]
[391103758,1760349033026,-461.233223,0.00024657,2]
[391103759,1760349033037,-500.0,0.00024657,2]
[391103760,1760349033049,-500.0,0.00024657,2]
[391103761,1760349033059,-500.0,0.00024657,2]
[391103762,1760349033069,-373.69119692,0.00024657,2]
[391103763,1760349033079,-500.0,0.00024657,2]
[391103764,1760349033090,-226.62723555,0.00024657,2]
[391103765,1760349033102,-501.25547331,0.00024657,2]
[391103766,1760349033114,-501.5000014,0.00024657,2]
[391103767,1760349033125,-501.26996317,0.00024657,2]
[391103768,1760349033136,-502.74950895,0.00024657,2]
[391103769,1760349033146,-501.51046457,0.00024657,2]
[391103770,1760349033157,-500.0,0.00024657,2]
[391103771,1760349033167,-505.58290303,0.00024657,2]
[391103772,1760349033178,-502.7121702,0.00024657,2]
[391103773,1760349033188,-500.0,0.00024657,2]
[391103774,1760349033198,-500.0,0.00024657,2]
[391103775,1760349033210,-260.72,0.00024657,2]
[391103776,1760349033220,-500.0,0.00024657,2]
[391103777,1760349033231,-502.93163508,0.00024657,2]
[391103778,1760349033241,-502.70829152,0.00024657,2]
[391103779,1760349033251,-501.37874945,0.00024657,2]
[391103780,1760349033262,-500.0,0.00024657,2]
[391103781,1760349033275,-500.0,0.00024657,2]
[391103782,1760349033285,-505.43549261,0.00024657,2]
[391103783,1760349033296,-500.0,0.00024657,2]
[391103784,1760349033307,-510.74248292,0.00024657,2]
[391103785,1760349033318,-503.72674127,0.00024657,2]
[391103786,1760349033328,-503.00278451,0.00024657,2]
[391103787,1760349033339,-502.04799095,0.00024657,2]
[391103788,1760349033348,-500.98889685,0.00024657,2]
[391103789,1760349033359,-453.23195553,0.00024657,2]
[391103790,1760349033369,-502.16596789,0.00024657,2]
[391103791,1760349033380,-501.99009363,0.00024657,2]
[391103792,1760349033389,-502.39199359,0.00024657,2]
[391103793,1760349033400,-503.63893324,0.00024657,2]
[391103794,1760349033410,-501.5086375,0.00024657,2]
[391103795,1760349033419,-502.79748514,0.00024657,2]
[391103796,1760349033429,-500.0,0.00024657,2]
[391103797,1760349033439,-172.26829222,0.00024657,2]
[391103798,1760349033449,-500.0,0.00024657,2]
[391103799,1760349033459,-511.26126235,0.00024657,2]
[391103800,1760349033469,-504.29463603,0.00024657,2]
[391103801,1760349033481,-501.78598821,0.00024657,2]
[391103802,1760349033492,-500.74773688,0.00024657,2]
[391103803,1760349033503,-503.44147006,0.00024657,2]
[391103804,1760349033514,-512.01912813,0.00024657,2]
[391103805,1760349033524,-199.88776415,0.00024657,2]
[391103806,1760349033534,-151.0,0.00024657,2]
[391103807,1760349033545,-500.0,0.00024657,2]
[391103808,1760349033555,-423.13187271,0.00024657,2]
[391103809,1760349033566,-500.0,0.00024657,2]
[391103810,1760349033576,-500.0,0.00024657,2]
[391103811,1760349033586,-500.0,0.00024657,2]
[391103812,1760349033595,-500.0,0.00024657,2]
[391103813,1760349033605,-500.0,0.00024657,2]
[391103814,1760349033615,-500.0,0.00024657,2]
[391103815,1760349033626,-500.0,0.00024657,2]
[391103816,1760349033637,-151.0,0.00024712,2]
[391103817,1760349033646,-199.62010075,0.00024767,2]
[391103818,1760349033657,-500.0,0.00024789,2]
[391103819,1760349033667,-500.0,0.00024789,2]
[391103820,1760349033677,-500.0,0.00024789,2]
[391103821,1760349033688,-218.60647296,0.000248,2]
[391103822,1760349033698,-500.0,0.00024833,2]
[391103823,1760349033708,-229.32378514,0.00024865,2]
[391103824,1760349033719,-3881.49617983,0.00024866,2]
[391103825,1760349033731,-311.68,0.0002489,3]
[391103826,1760349033742,-155.84,0.0002489,3]
[391103827,1760349033753,-467.55,0.0002489,3]
[391103828,1760349033763,-18787.4411033,0.000249,2]
[391103829,1760349033775,-487.77105415,0.00024927,2]
[391103830,1760349033786,-181.48633269,0.00024952,2]
[391103831,1760349033796,-159.66,0.0002498,8]
[391103832,1760349033807,-298.71794047,0.00025078,2]
[391103833,1760349033817,-1618.04880863,0.0002516,2]
[391103834,1760349033829,-991.02,0.0002521,2]
[391103835,1760349033840,-500.0,0.00025314,2]
[391103836,1760349033850,-500.78993845,0.00025381,2]
[391103837,1760349033863,-587.0,0.00025722,2]
[391103838,1760349033874,-427.49938704,0.00025862,2]
[391103839,1760349033884,-1871.0,0.00025965,2]
[391103840,1760349033894,-166531.00316418,0.00026,4]
[391103877,1760349038430,-500.59172548,0.00021773,2]
[391103879,1760349038441,-299.55193274,0.00021773,2]
[391103881,1760349038452,-500.0,0.00021773,2]
[391103883,1760349038463,-500.0,0.00021773,2]
[391103885,1760349038475,-500.0,0.00021773,2]
[391103888,1760349038486,-314.0,0.00024224,2]
[391103890,1760349038497,-293825.07896034,0.00026,4]
[391104054,1760349072632,228.35,0.0001997,2]
[391104055,1760349152208,225.44,0.00019861,2]
[391104056,1760349178635,151.0,0.00017,2]
[391104057,1760349179633,151.0,0.0001735,2]
[391104058,1760349180631,151.0,0.000177,2]
[391104059,1760349181642,151.0,0.0001805,2]
[391104060,1760349182631,151.0,0.000184,2]
[391104061,1760349183654,151.0,0.0001875,2]
[391104062,1760349184667,151.0,0.000191,2]
[391104063,1760349232114,222.57,0.00019827,2]
[391104064,1760349265612,167.574736,0.00011357,2]
[391104069,1760349274032,5000.0,0.00020971,2]
[391104070,1760349287287,155.2413996,0.00013699,2]
[391104071,1760349287311,75.4765134,0.00013699,2]
[391104072,1760349287485,230.717913,0.00020187,2]
[391104073,1760349313266,219.74,0.00019824,2]
[391104074,1760349318459,-184.08815326,0.00021352,2]
[391104075,1760349321571,-281.44835964,0.00021352,2]
[391104076,1760349325283,-303.55164036,0.00021352,2]
[391104077,1760349329639,-184.08815326,0.00021352,2]
[391104079,1760349348628,-310.27732706,0.00021352,2]
[391104080,1760349351504,-202.52253902,0.00021352,2]
[391104081,1760349363558,-330.01073945,0.00021352,2]
[391104082,1760349365375,-325.13267759,0.00021352,2]
[391104083,1760349392640,216.94,0.00019851,2]
[391104084,1760349393381,-432.72455755,0.00021352,2]
[391104085,1760349396491,-385.13824296,0.00021352,2]
[391104086,1760349401484,-244.48501313,0.00021352,2]
[391104087,1760349403166,817.86280051,0.00020971,2]
[391104088,1760349405268,-156.85554625,0.00021352,2]
[391104089,1760349407793,-190.55902616,0.00021352,2]
[391104090,1760349426557,-214.95596071,0.00021352,2]
[391104091,1760349461125,3014.00493226,0.00020971,2]
[391104092,1760349479495,214.18,0.00019809,2]
[391104093,1760349499077,-150.0,0.00021352,2]
[391104094,1760349499102,-61.18251731,0.0002161,2]
[391104095,1760349501841,-367.17748269,0.0002161,2]
[391104096,1760349501864,-172.5,0.00021952,2]
[391104097,1760349501883,-300.0,0.00022206,2]
[391104098,1760349501904,-202.31630652,0.00022207,20]
[391104099,1760349513606,-238.4800587,0.00021985,2]
[391104100,1760349516900,-500.0,0.00021985,2]
[391104101,1760349529920,-368.46969122,0.00021985,2]
[391104102,1760349529943,-73.1396842,0.00022207,20]
[391104103,1760349533468,-24.54400928,0.00022207,20]
[391104104,1760349533491,-126.45599072,0.00022207,20]
[391104105,1760349535933,-173.54400928,0.00022207,20]
[391104106,1760349535954,-126.45599072,0.00022207,20]
[391104107,1760349559504,207.91,0.00019802,2]
[391104108,1760349602120,164.0,7.5e-07,2]
[391104109,1760349603359,164.0,7.5e-07,2]
[391104110,1760349639717,205.27,0.00019807,2]
[391104111,1760349721498,208.26,0.00019808,2]
[391104120,1760349802176,205.61,0.00019802,2]
[391104122,1760349882782,207.98,0.00019806,2]
[391104123,1760349948963,300.0,0.00020971,2]
[391104124,1760349966454,1033.4639046,0.00019,5]
[391104125,1760349966690,205.33,0.00019814,2]
[391104126,1760350047075,202.72,0.00019807,2]
[391104127,1760350084408,154.15,0.00015135,4]
[391104128,1760350084701,154.15,0.00015135,4]
[391104129,1760350084975,154.13,0.00015135,4]
[391104131,1760350128526,200.14,0.00019799,2]
[391104132,1760350212958,197.59,0.00019811,2]
[391104183,1760350232524,-200.0,0.00021602,2]
[391104185,1760350232533,-150.0,0.00021602,2]
[391104187,1760350232542,-395.19,0.00021612,2]
[391104189,1760350232550,-172.5,0.00022202,2]
[391104191,1760350232559,-300.0,0.00022206,2]
[391104193,1760350232569,-173.54400928,0.00022207,20]
[391104195,1760350232578,-300.0,0.00022207,20]
[391104197,1760350232588,-300.0,0.00022207,20]
[391104199,1760350232600,-72.97587466,0.00022207,20]
[391104201,1760350232610,-227.02412534,0.00022207,20]
[391104203,1760350232619,-259.66828466,0.00022207,20]
[391104205,1760350232631,-40.33171534,0.00022207,20]
[391104207,1760350232641,-300.0,0.00022207,20]
[391104209,1760350232650,-300.0,0.00022207,20]
[391104211,1760350232659,-300.0,0.00022207,20]
[391104213,1760350232670,-300.0,0.00022207,20]
[391104215,1760350232679,-300.0,0.00022207,20]
[391104217,1760350232687,-300.0,0.00022207,20]
[391104219,1760350232696,-300.0,0.00022207,20]
[391104221,1760350232705,-300.0,0.00022207,20]
[391104223,1760350232714,-600.0,0.00022207,20]
[391104225,1760350232724,-4718.21792785,0.00022207,2]
[391104227,1760350232733,-2282.3694699,0.0002279,2]
[391104229,1760350232742,-195.0,0.00022802,2]
[391104231,1760350232751,-281.6412391,0.000229,2]
[391104233,1760350232760,-160.0,0.00023,2]
[391104235,1760350232769,-217.5,0.00023402,2]
[391104237,1760350232778,-592.78,0.00023413,2]
[391104239,1760350232788,-160.67226984,0.00024,2]
[391104241,1760350232797,-196.36069681,0.00024,2]
[391104242,1760350232806,-240.0,0.00024002,2]
[391104243,1760350232816,-420.0,0.00024125,2]
[391104244,1760350232826,-196.36069681,0.000242,2]
[391104245,1760350232835,-973.70341594,0.0002423,2]
[391104246,1760350232845,-2089.07574424,0.00024334,2]
[391104247,1760350232854,-3860.77010034,0.00024355,2]
[391104248,1760350232863,-720.0,0.00024428,20]
[391104249,1760350232872,-196.36069681,0.000245,2]
[391104250,1760350232881,-2309.6504683,0.00024557,2]
[391104251,1760350232890,-1278.6859807,0.00024595,2]
[391104252,1760350232899,-262.5,0.00024602,2]
[391104253,1760350232909,-2399.4480173,0.00024653,2]
[391104254,1760350232918,-500.0,0.00024657,2]
[391104255,1760350232927,-500.0,0.00024657,2]
[391104256,1760350232936,-501.11653393,0.00024657,2]
[391104257,1760350232945,-500.0,0.00024657,2]
[391104258,1760350232954,-500.0,0.00024657,2]
[391104259,1760350232963,-500.0,0.00024657,2]
[391104260,1760350232972,-500.0,0.00024657,2]
[391104261,1760350232981,-500.0,0.00024657,2]
[391104262,1760350232990,-500.0,0.00024657,2]
[391104263,1760350232999,-500.0,0.00024657,2]
[391104264,1760350233008,-500.0,0.00024657,2]
[391104265,1760350233017,-500.0,0.00024657,2]
[391104266,1760350233026,-500.0,0.00024657,2]
[391104267,1760350233035,-500.0,0.00024657,2]
[391104268,1760350233043,-1000.0,0.00024657,2]
[391104269,1760350233052,-726.03678412,0.00024657,2]
[391104270,1760350233061,-166.68,0.00024657,2]
[391104271,1760350233071,-1003.50932643,0.00024657,2]
[391104272,1760350233080,-500.0,0.00024657,2]
[391104273,1760350233089,-500.0,0.0002466,2]
[391104274,1760350233097,-151.0,0.00024767,2]
[391104275,1760350233106,-152.43772759,0.00024767,2]
[391104276,1760350233115,-152.90145878,0.00024767,2]
[391104277,1760350233124,-151.0,0.00024822,2]
[391104278,1760350233133,-1278.6859807,0.00024838,2]
[391104279,1760350233142,-200.70921319,0.00024877,2]
[391104280,1760350233151,-500.0,0.00025022,4]
[391104281,1760350233160,-193.02,0.00025022,4]
[391104282,1760350233169,-193.02,0.00025022,4]
[391104283,1760350233179,-193.02,0.00025022,4]
[391104284,1760350233189,-1278.6859807,0.00025026,2]
[391104285,1760350233199,-353.51727982,0.00025123,2]
[391104286,1760350233208,-156.24757457,0.00025202,2]
[391104287,1760350233218,-500.0,0.00025207,4]
[391104288,1760350233227,-1000.0,0.00025208,2]
[391104289,1760350233236,-790.38,0.00025214,2]
[391104290,1760350233246,-1278.6859807,0.00025309,2]
[391104291,1760350233255,-500.0,0.00025313,2]
[391104292,1760350233264,-1008.948,0.00025374,2]
[391104293,1760350233273,-1278.68598072,0.00025548,2]
[391104294,1760350233282,-500.0,0.000256,2]
[391104295,1760350233292,-500.0,0.00025756,2]
[391104296,1760350233301,-160.0,0.00025858,2]
[391104297,1760350233310,-500.0,0.0002586,2]
[391104298,1760350233319,-500.0,0.00025873,2]
[391104299,1760350233329,-500.0,0.00025873,2]
[391104300,1760350233339,-500.0,0.00025879,4]
[391104301,1760350233348,-650.0,0.0002588,2]
[391104302,1760350233358,-500.0,0.0002588,2]
[391104303,1760350233367,-400.0,0.0002588,2]
[391104304,1760350233377,-500.0,0.0002588,2]
[391104305,1760350233386,-310.5,0.0002588,2]
[391104306,1760350233395,-500.0,0.0002588,2]
[391104307,1760350233405,-500.0,0.0002588,2]
[391104308,1760350233415,-416.67324139,0.0002588,2]
[391104309,1760350233424,-500.0,0.0002588,2]
[391104310,1760350233434,-500.0,0.0002588,2]
[391104311,1760350233443,-500.0,0.0002588,2]
[391104312,1760350233453,-500.0,0.0002588,2]
[391104313,1760350233462,-392.5257126,0.0002588,2]
[391104314,1760350233471,-500.0,0.0002588,2]
[391104315,1760350233480,-500.0,0.0002588,2]
[391104316,1760350233489,-500.0,0.0002588,4]
[391104317,1760350233498,-30214.7547707,0.00025881,2]
[391104318,1760350233507,-160.6480317,0.00025891,2]
[391104319,1760350233517,-277.0,0.00025922,2]
[391104320,1760350233526,-145921.09197417,0.00026,4]
[391104321,1760350233538,-538.83332281,0.00026,4]
[391104353,1760350238612,-16616.54751233,0.00026,4]
[391104355,1760350238623,-1453.0,0.00026,4]
[391104428,1760350240777,-3e-08,0.00026,4]
[391104611,1760350243874,-575.31908398,0.00026,4]
[391104833,1760350247833,1004.0,0.00027397,120]
[391104834,1760350256881,1000.0,0.00027397,120]
[391104835,1760350262446,1000.0,0.00027397,120]
[391104836,1760350268765,1000.0,0.00027397,120]
[391104837,1760350274272,1000.0,0.00027397,120]
[391104838,1760350279275,1000.0,0.00027397,120]
[391104839,1760350286629,1000.0,0.00027397,120]
[391104840,1760350291705,172.45,0.00019869,2]
[391104841,1760350309226,1000.0,0.00027397,120]
[391104842,1760350315552,1000.0,0.00027397,120]
[391104843,1760350320437,1000.0,0.00027397,120]
[391104846,1760350372121,170.25,0.00019842,2]
[391104847,1760350450966,168.08,0.00019841,2]
[391104849,1760350532761,165.95,0.00019841,2]
[391104850,1760350539186,16020.86811869,0.00027397,120]
[391104852,1760350582982,1312.52836263,0.000201,49]
[391104853,1760350583006,2687.47163737,0.000201,49]
[391104854,1760350613747,163.83,0.00019834,2]
[391104855,1760350695641,161.75,0.00019808,2]
[391104856,1760350775922,159.69,0.00019893,2]
[391104857,1760350855137,157.66,0.00019873,2]
[391104858,1760350886895,-300.0,0.00025149,20]
[391104859,1760350886924,-300.0,0.00025149,20]
[391104860,1760350886954,-300.0,0.00025149,20]
[391104861,1760350886984,-300.0,0.00025149,20]
[391104862,1760350887015,-300.0,0.00025149,20]
[391104863,1760350887044,-300.0,0.00025149,20]
[391104864,1760350887074,-300.0,0.00025149,20]
[391104865,1760350887103,-300.0,0.00025149,20]
[391104866,1760350887131,-300.0,0.00025149,20]
[391104867,1760350887176,-300.0,0.00025149,20]
[391104868,1760350887210,-300.0,0.00025149,20]
[391104869,1760350887242,-300.0,0.00025149,20]
[391104870,1760350887273,-300.0,0.00025149,20]
[391104871,1760350887304,-300.0,0.00025149,20]
[391104872,1760350887335,-300.0,0.00025149,20]
[391104873,1760350887366,-562.161,0.00025149,20]
[391104874,1760350934560,155.65,0.00019837,2]
[391104875,1760351015579,153.67,0.0001986,2]
[391104876,1760351040449,-307.34,0.00021666,2]
[391104877,1760351090876,6934.0,0.0002,10]
[391104878,1760351095350,150.0,0.00019862,2]
[391104879,1760351175468,150.0,0.00019873,2]
[391104880,1760351255150,150.0,0.00019845,2]
[391104881,1760351320924,1815.12341466,0.0001,2]
[391104882,1760351334264,150.0,0.00019856,2]
[391104883,1760351414774,24.21658534,0.00019855,2]
[391104884,1760351414799,125.78341466,0.00019855,2]
[391105053,1760351437834,-280.33,0.0002166,2]
[391105054,1760351437844,-200.0,0.00021661,2]
[391105056,1760351437853,-240.0,0.0002168,2]
[391105058,1760351437862,-214.6775932,0.00023234,2]
[391105060,1760351437871,-420.5,0.00023465,2]
[391105061,1760351437880,-184.08815326,0.00024,2]
[391105062,1760351437889,-204.28177558,0.00024,2]
[391105063,1760351437904,-184.08815326,0.000242,2]
[391105064,1760351437913,-300.0,0.00024323,2]
[391105065,1760351437922,-1164.0,0.00024323,2]
[391105066,1760351437934,-432.50285696,0.00024323,2]
[391105067,1760351437943,-29694.72579398,0.00024324,2]
[391105068,1760351437957,-31675.43438152,0.00024324,2]
[391105069,1760351437966,-2089.07574424,0.00024337,2]
[391105070,1760351437977,-579.72226754,0.00024586,2]
[391105071,1760351437986,-194.0046637,0.00024586,2]
[391105072,1760351437995,-775.24263615,0.00024586,2]
[391105073,1760351438007,-500.0,0.00024657,2]
[391105074,1760351438016,-435.64230277,0.00024657,2]
[391105075,1760351438025,-500.0,0.00024657,2]
[391105076,1760351438035,-500.0,0.00024657,2]
[391105077,1760351438044,-500.0,0.00024657,2]
[391105078,1760351438054,-524.30492907,0.00024657,2]
[391105079,1760351438063,-700.18,0.00024657,2]
[391105080,1760351438073,-104.69922432,0.00024657,2]
[391105180,1760351439695,-595.48077568,0.00024657,2]
[391105182,1760351439705,-700.18,0.00024657,2]
[391105184,1760351439714,-700.18,0.00024657,2]
[391105186,1760351439723,-700.18,0.00024657,2]
[391105187,1760351439731,-700.18,0.00024657,2]
[391105189,1760351439740,-700.18,0.00024657,2]
[391105192,1760351439751,-700.18,0.00024657,2]
[391105193,1760351439760,-700.18,0.00024657,2]
[391105195,1760351439770,-700.18,0.00024657,2]
[391105197,1760351439779,-700.18,0.00024657,2]
[391105199,1760351439788,-700.18,0.00024657,2]
[391105201,1760351439798,-700.18,0.00024657,2]
[391105204,1760351439808,-700.18,0.00024657,2]
[391105206,1760351439818,-700.18,0.00024657,2]
[391105208,1760351439827,-700.18,0.00024657,2]
[391105210,1760351439837,-700.18,0.00024657,2]
[391105212,1760351439846,-700.18,0.00024657,2]
[391105214,1760351439855,-700.18,0.00024657,2]
[391105216,1760351439864,-700.18,0.00024657,2]
[391105218,1760351439874,-407.54473235,0.00024657,2]
[391105233,1760351440064,-56.94220743,0.00024657,2]
[391106000,1760351462095,158.0,0.00027397,120]
[391106001,1760351494364,158.3,0.00019871,2]
[391106005,1760351575055,225.66,0.00019867,2]
[391106006,1760351643195,4381.36886006,0.00020971,2]
[391106007,1760351776355,10000.0,0.00027397,120]
[391106009,1760352025725,5000.0,0.00020971,2]
[391106010,1760352027141,108.89772528,0.00019994,2]
[391106011,1760352027166,113.89227472,0.00019994,2]
[391106012,1760352108449,219.96,0.00020003,2]
[391106013,1760352186708,207.646121,0.00013699,2]
[391106014,1760352186918,207.646121,0.00020187,2]
[391106015,1760352188532,217.16,0.00020013,2]
[391106017,1760352268845,214.39,0.00020024,2]
[391106018,1760352349285,211.66,0.00020055,2]
[391106019,1760352430307,208.97,0.00020041,2]
[391106020,1760352510325,206.31,0.0002004,2]
[391106021,1760352591518,203.69,0.00020018,2]
[391106022,1760352602472,151.2,0.00020971,2]
[391106061,1760352631897,-150.0,0.00021364,2]
[391106063,1760352631907,-205.17543761,0.0002158,2]
[391106065,1760352631916,-300.0,0.00021789,2]
[391106067,1760352631926,-300.0,0.0002179,20]
[391106069,1760352631935,-300.0,0.0002179,20]
[391106071,1760352631944,-300.0,0.0002179,20]
[391106073,1760352631953,-300.0,0.0002179,20]
[391106075,1760352631962,-300.0,0.0002179,20]
[391106077,1760352631971,-300.0,0.0002179,20]
[391106079,1760352631980,-300.0,0.0002179,20]
[391106081,1760352631990,-300.0,0.0002179,20]
[391106083,1760352631999,-300.0,0.0002179,20]
[391106085,1760352632009,-300.0,0.0002179,20]
[391106087,1760352632018,-300.0,0.0002179,20]
[391106089,1760352632027,-300.0,0.0002179,20]
[391106091,1760352632037,-300.0,0.0002179,20]
[391106093,1760352632046,-300.0,0.0002179,20]
[391106096,1760352632055,-300.0,0.0002179,20]
[391106099,1760352632065,-4866.88457147,0.0002179,2]
[391106101,1760352632074,-407.37,0.00021837,2]
[391106104,1760352632083,-162.245953,0.00021915,2]
[391106107,1760352632092,-172.5,0.00021964,2]
[391106111,1760352632101,-675.0,0.00022,2]
[391106114,1760352632110,-174.282203,0.00022029,2]
[391106118,1760352632121,-600.0,0.00022225,20]
[391106120,1760352632130,-195.0,0.00022564,2]
[391106124,1760352632139,-217.5,0.00023164,2]
[391106125,1760352632152,-938.0675813,0.00023261,2]
[391106130,1760352632162,-2116.657656,0.0002327,2]
[391106133,1760352632172,-611.06,0.00023657,2]
[391106134,1760352632181,-420.0,0.00023682,2]
[391106137,1760352632190,-240.0,0.00023764,2]
[391106140,1760352632200,-10928.81069504,0.00023895,2]
[391106142,1760352632209,-500.0,0.00023949,2]
[391106144,1760352632218,-500.0,0.00023949,2]
[391106146,1760352632230,-500.0,0.00023949,2]
[391106147,1760352632239,-461.85392373,0.00023949,2]
[391106149,1760352632249,-500.0,0.00023949,2]
[391106151,1760352632258,-500.0,0.00023949,2]
[391106153,1760352632268,-500.0,0.00023949,2]
[391106155,1760352632277,-500.0,0.00023949,2]
[391106157,1760352632286,-402.1904032,0.00023949,2]
[391106159,1760352632295,-500.0,0.00023949,2]
[391106161,1760352632306,-500.0,0.00023949,2]
[391106163,1760352632315,-212.09325666,0.00023949,2]
[391106165,1760352632325,-500.0,0.00023949,2]
[391106167,1760352632334,-645.01429881,0.00023949,2]
[391106169,1760352632343,-500.0,0.00023949,2]
[391106171,1760352632352,-500.0,0.00023949,2]
[391106173,1760352632361,-500.0,0.00023949,2]
[391106175,1760352632371,-500.0,0.00023949,2]
[391106177,1760352632381,-300.0,0.00023949,2]
[391106179,1760352632390,-1000.0,0.00023949,2]
[391106181,1760352632401,-94127.02561165,0.0002395,2]
[391106183,1760352632411,-501.24957147,0.00023973,2]
[391106185,1760352632420,-500.0,0.00023973,2]
[391106187,1760352632430,-500.0,0.00023973,2]
[391106189,1760352632439,-500.0,0.00023973,2]
[391106191,1760352632448,-500.51536952,0.00023973,2]
[391106193,1760352632458,-609.57135988,0.00023973,2]
[391106195,1760352632467,-159.7927757,0.00023973,2]
[391106197,1760352632476,-984.29,0.0002398,3]